fUST/lending_fUST_20240109
["ID","MTS","AMOUNT","RATE_DAILY","PERIOD"]
[310884083,1704771041853,-500.0,0.00035616,2]
[310884084,1704771041862,-517.60631347,0.00035616,2]
[310884085,1704771041872,-205.3030203,0.00035616,2]
[310884086,1704771041881,-500.0,0.00035616,2]
[310884087,1704771041890,-584.41,0.00035616,2]
[310884088,1704771041899,-500.0,0.00035616,2]
[310884089,1704771041909,-500.0,0.00035616,2]
[310884090,1704771041918,-2422.78,0.00035616,2]
[310884091,1704771041927,-500.0,0.00035616,2]
[310884092,1704771041937,-500.0,0.00035616,2]
[310884093,1704771041946,-2139.0,0.00035616,2]
[310884094,1704771041955,-500.0,0.00035616,2]
[310884095,1704771041964,-500.0,0.00035616,2]
[310884096,1704771041973,-500.0,0.00035616,2]
[310884097,1704771041982,-500.0,0.00035616,2]
[310884098,1704771041991,-500.0,0.00035616,2]
[310884099,1704771042001,-500.0,0.00035616,2]
[310884100,1704771042010,-540.34902769,0.00035616,2]
[310884101,1704771042019,-608.25509253,0.00035616,2]
[310884102,1704771042028,-666.32,0.00035616,2]
[310884103,1704771042038,-500.90203694,0.00035616,2]
[310884104,1704771042047,-500.0,0.00035616,2]
[310884105,1704771042058,-500.0,0.00035616,2]
[310884106,1704771042067,-502.57378155,0.00035616,2]
[310884107,1704771042076,-297.81679147,0.00035616,2]
[310884108,1704771042086,-500.0,0.00035616,2]
[310884109,1704771042095,-515.56484014,0.00035616,2]
[310884110,1704771042104,-547.39227854,0.00035616,2]
[310884111,1704771042114,-500.0,0.00035616,2]
[310884112,1704771042124,-1579.15,0.00035616,2]
[310884113,1704771042134,-500.0,0.00035616,2]
[310884114,1704771042144,-522.91458442,0.00035616,2]
[310884115,1704771042153,-516.51757613,0.00035616,2]
[310884116,1704771042163,-500.0,0.00035616,2]
[310884117,1704771042172,-480.60904394,0.00035616,2]
[310884118,1704771042181,-503.17940485,0.00035616,2]
[310884119,1704771042191,-500.0,0.00035616,2]
[310884120,1704771042200,-500.0,0.00035616,2]
[310884121,1704771042209,-638.75462537,0.00035616,2]
[310884122,1704771042219,-1234.65,0.00035616,2]
[310884123,1704771042228,-501.03286925,0.00035616,2]
[310884124,1704771042237,-500.0,0.00035616,2]
[310884125,1704771042246,-268.25266853,0.00035616,2]
[310884126,1704771042255,-500.0,0.00035616,2]
[310884127,1704771042264,-1790.81,0.00035616,2]
[310884128,1704771042273,-500.86593983,0.00035616,2]
[310884129,1704771042285,-500.0,0.00035616,2]
[310884130,1704771042294,-500.0,0.00035616,2]
[310884131,1704771042303,-500.0,0.00035616,2]
[310884132,1704771042313,-335.92479617,0.00035616,2]
[310884133,1704771042322,-500.0,0.00035616,2]
[310884134,1704771042333,-500.0,0.00035616,2]
[310884135,1704771042342,-500.0,0.00035616,2]
[310884136,1704771042351,-500.0,0.00035616,2]
[310884137,1704771042360,-500.78632076,0.00035616,2]
[310884138,1704771042369,-500.0,0.00035616,2]
[310884139,1704771042379,-500.0,0.00035616,2]
[310884140,1704771042388,-500.0,0.00035616,2]
[310884141,1704771042397,-500.0,0.00035616,2]
[310884142,1704771042406,-500.0,0.00035616,2]
[310884143,1704771042415,-522.56090064,0.00035616,2]
[310884144,1704771042424,-207.68327922,0.00035616,2]
[310884145,1704771042434,-500.0,0.00035616,2]
[310884146,1704771042443,-500.0,0.00035616,2]
[310884147,1704771042451,-604.73200117,0.00035616,2]
[310884148,1704771042461,-164.480547,0.00035616,120]
[310884149,1704771042470,-2713.55973559,0.0003569,12]
[310884150,1704771042479,-30848.36745887,0.00035789,3]
[310884151,1704771042488,-1378.688168,0.00035798,2]
[310884152,1704771042497,-5731.37,0.0003586,15]
[310884153,1704771042506,-216.74327556,0.00035889,10]
[310884154,1704771042515,-160.0,0.00035889,10]
[310884155,1704771042525,-1109.96,0.00035889,2]
[310884156,1704771042537,-1109.96,0.00035889,2]
[310884157,1704771042547,-1109.96,0.00035889,2]
[310884158,1704771042556,-1109.96,0.00035889,2]
[310884159,1704771042566,-500.0,0.0003589,2]
[310884160,1704771042575,-500.0,0.0003589,2]
[310884161,1704771042584,-500.0,0.0003589,2]
[310884162,1704771042593,-500.0,0.0003589,2]
[310884163,1704771042601,-500.0,0.0003589,2]
[310884164,1704771042611,-507.18325789,0.0003589,2]
[310884165,1704771042620,-500.0,0.0003589,2]
[310884166,1704771042630,-1118.41,0.0003589,2]
[310884167,1704771042639,-266.61540679,0.0003589,2]
[310884168,1704771042649,-500.0,0.0003589,2]
[310884169,1704771042658,-500.0,0.0003589,2]
[310884170,1704771042667,-500.0,0.0003589,2]
[310884171,1704771042675,-500.0,0.0003589,2]
[310884172,1704771042684,-500.0,0.0003589,2]
[310884173,1704771042693,-176.67995939,0.0003589,2]
[310884174,1704771042703,-502.10836974,0.0003589,2]
[310884175,1704771042711,-500.0,0.0003589,2]
[310884176,1704771042720,-500.0,0.0003589,2]
[310884177,1704771042729,-550.74376636,0.0003589,2]
[310884178,1704771042738,-500.0,0.0003589,2]
[310884179,1704771042747,-500.0,0.0003589,2]
[310884180,1704771042756,-500.0,0.0003589,2]
[310884181,1704771042765,-520.07099827,0.0003589,2]
[310884182,1704771042774,-500.0,0.0003589,2]
[310884183,1704771042786,-932.24,0.0003589,2]
[310884184,1704771042796,-500.0,0.0003589,2]
[310884185,1704771042805,-500.0,0.0003589,2]
[310884186,1704771042814,-500.0,0.0003589,2]
[310884187,1704771042823,-1313.26,0.0003589,2]
[310884188,1704771042832,-500.0,0.0003589,2]
[310884189,1704771042842,-500.0,0.0003589,2]
[310884190,1704771042851,-500.0,0.0003589,2]
[310884191,1704771042861,-506.60874421,0.0003589,2]
[310884192,1704771042870,-500.0,0.0003589,2]
[310884193,1704771042879,-500.0,0.0003589,2]
[310884194,1704771042889,-564.3,0.0003589,2]
[310884195,1704771042898,-514.68539506,0.0003589,2]
[310884196,1704771042907,-500.0,0.0003589,2]
[310884197,1704771042916,-500.0,0.0003589,2]
[310884198,1704771042926,-500.0,0.0003589,2]
[310884199,1704771042939,-500.0,0.0003589,2]
[310884200,1704771042949,-500.0,0.0003589,2]
[310884201,1704771042958,-500.0,0.0003589,2]
[310884202,1704771042967,-500.0,0.0003589,2]
[310884203,1704771042978,-620.01,0.0003589,2]
[310884204,1704771042987,-500.0,0.0003589,2]
[310884205,1704771042996,-500.0,0.0003589,2]
[310884206,1704771043005,-500.0,0.0003589,2]
[310884207,1704771043015,-500.0,0.0003589,2]
[310884208,1704771043024,-500.0,0.0003589,2]
[310884209,1704771043034,-500.0,0.0003589,2]
[310884210,1704771043043,-500.0,0.0003589,2]
[310884211,1704771043053,-500.0,0.0003589,2]
[310884212,1704771043062,-500.0,0.0003589,2]
[310884213,1704771043071,-500.0,0.0003589,2]
[310884214,1704771043080,-500.0,0.0003589,2]
[310884215,1704771043089,-500.0,0.0003589,2]
[310884216,1704771043098,-500.0,0.0003589,2]
[310884217,1704771043106,-500.0,0.0003589,2]
[310884218,1704771043115,-500.0,0.0003589,2]
[310884219,1704771043124,-500.0,0.0003589,2]
[310884220,1704771043133,-3080.9,0.0003589,2]
[310884221,1704771043142,-500.0,0.0003589,2]
[310884222,1704771043151,-500.0,0.0003589,2]
[310884223,1704771043160,-453.87475052,0.0003589,2]
[310884224,1704771043170,-500.0,0.0003589,2]
[310884225,1704771043180,-500.0,0.0003589,2]
[310884226,1704771043288,-500.0,0.0003589,2]
[310884227,1704771043298,-500.0,0.0003589,2]
[310884228,1704771043307,-500.0,0.0003589,2]
[310884229,1704771043316,-500.0,0.0003589,2]
[310884230,1704771043326,-500.0,0.0003589,2]
[310884231,1704771043335,-500.0,0.0003589,2]
[310884232,1704771043345,-500.0,0.0003589,2]
[310884233,1704771043354,-500.0,0.0003589,2]
[310884234,1704771043364,-773.85,0.0003589,2]
[310884235,1704771043373,-500.0,0.0003589,2]
[310884236,1704771043381,-500.0,0.0003589,2]
[310884237,1704771043390,-1685.28,0.0003589,2]
[310884238,1704771043399,-500.0,0.0003589,2]
[310884239,1704771043408,-500.0,0.0003589,2]
[310884240,1704771043417,-500.0,0.0003589,2]
[310884241,1704771043427,-500.0,0.0003589,2]
[310884242,1704771043436,-500.0,0.0003589,2]
[310884243,1704771043446,-500.0,0.0003589,2]
[310884244,1704771043456,-500.0,0.0003589,2]
[310884245,1704771043466,-500.0,0.0003589,2]
[310884246,1704771043475,-500.0,0.0003589,2]
[310884247,1704771043485,-500.0,0.0003589,2]
[310884248,1704771043494,-565.30533214,0.0003589,2]
[310884249,1704771043505,-500.0,0.0003589,2]
[310884250,1704771043515,-500.0,0.0003589,2]
[310884251,1704771043525,-500.0,0.0003589,2]
[310884252,1704771043535,-500.0,0.0003589,2]
[310884253,1704771043545,-500.0,0.0003589,2]
[310884254,1704771043555,-500.0,0.0003589,2]
[310884255,1704771043566,-1533.09,0.0003589,2]
[310884256,1704771043576,-500.0,0.0003589,2]
[310884257,1704771043585,-503.42336676,0.0003589,2]
[310884258,1704771043595,-500.0,0.0003589,2]
[310884259,1704771043605,-500.0,0.0003589,2]
[310884260,1704771043616,-500.0,0.0003589,2]
[310884261,1704771043625,-500.0,0.0003589,2]
[310884262,1704771043635,-572.65,0.0003589,2]
[310884263,1704771043646,-505.56430784,0.0003589,2]
[310884264,1704771043656,-504.3072652,0.0003589,2]
[310884265,1704771043666,-1306.8,0.0003589,2]
[310884266,1704771043677,-507.12889787,0.0003589,2]
[310884268,1704771043688,-500.0,0.0003589,2]
[310884270,1704771043698,-424.19971839,0.0003589,2]
[310884271,1704771043707,-500.0,0.0003589,2]
[310884272,1704771043718,-500.0,0.0003589,2]
[310884273,1704771043730,-500.0,0.0003589,2]
[310884274,1704771043741,-500.0,0.0003589,2]
[310884275,1704771043750,-1148.01,0.0003589,2]
[310884276,1704771043760,-500.0,0.0003589,2]
[310884277,1704771043770,-500.0,0.0003589,2]
[310884279,1704771043781,-500.0,0.0003589,2]
[310884280,1704771043792,-500.0,0.0003589,2]
[310884282,1704771043801,-500.0,0.0003589,2]
[310884283,1704771043810,-500.0,0.0003589,2]
[310884285,1704771043819,-904.65,0.0003589,2]
[310884286,1704771043829,-502.89657814,0.0003589,2]
[310884287,1704771043838,-500.0,0.0003589,2]
[310884288,1704771043848,-500.0,0.0003589,2]
[310884289,1704771043857,-2401.08,0.0003589,2]
[310884291,1704771043867,-1156.65,0.0003589,2]
[310884292,1704771043876,-500.0,0.0003589,2]
[310884293,1704771043885,-5661.72,0.0003589,2]
[310884295,1704771043895,-504.80116361,0.0003589,2]
[310884296,1704771043904,-1494.85,0.0003589,2]
[310884297,1704771043913,-806.17,0.0003589,2]
[310884298,1704771043922,-500.0,0.0003589,2]
[310884299,1704771043932,-674.79,0.0003589,2]
[310884300,1704771043942,-2187.6,0.0003589,2]
[310884301,1704771043951,-500.0,0.0003589,2]
[310884302,1704771043961,-286.75818751,0.0003589,2]
[310884303,1704771043971,-500.0,0.0003589,2]
[310884305,1704771043981,-503.80503985,0.0003589,2]
[310884307,1704771043990,-500.0,0.0003589,2]
[310884308,1704771043999,-500.0,0.0003589,2]
[310884309,1704771044009,-500.0,0.0003589,2]
[310884310,1704771044018,-500.0,0.0003589,2]
[310884311,1704771044027,-1316.75,0.0003589,2]
[310884312,1704771044038,-500.0,0.0003589,2]
[310884313,1704771044047,-500.0,0.0003589,2]
[310884314,1704771044056,-514.27,0.0003589,2]
[310884315,1704771044065,-500.0,0.0003589,2]
[310884316,1704771044075,-500.0,0.0003589,2]
[310884317,1704771044084,-5713.43,0.0003589,2]
[310884318,1704771044094,-500.0,0.0003589,2]
[310884319,1704771044104,-500.0,0.0003589,2]
[310884320,1704771044113,-500.0,0.0003589,2]
[310884321,1704771044122,-500.0,0.0003589,2]
[310884322,1704771044131,-500.0,0.0003589,2]
[310884323,1704771044140,-46103.08,0.0003589,2]
[310884324,1704771044149,-500.0,0.0003589,2]
[310884325,1704771044158,-500.0,0.0003589,2]
[310884326,1704771044167,-362.47033602,0.0003589,2]
[310884327,1704771044177,-545.93280245,0.0003589,2]
[310884328,1704771044186,-14039.17,0.0003589,2]
[310884329,1704771044195,-500.0,0.0003589,2]
[310884330,1704771044204,-1611.24,0.0003589,2]
[310884331,1704771044214,-1000.0,0.0003589,2]
[310884332,1704771044223,-500.0,0.0003589,2]
[310884333,1704771044232,-500.0,0.0003589,5]
[310884334,1704771044242,-1961.83,0.0003589,2]
[310884335,1704771044250,-500.0,0.0003589,2]
[310884336,1704771044260,-500.0,0.0003589,2]
[310884337,1704771044269,-584.41,0.0003589,2]
[310884338,1704771044278,-500.0,0.0003589,2]
[310884339,1704771044288,-500.0,0.0003589,2]
[310884340,1704771044297,-2422.78,0.0003589,2]
[310884341,1704771044306,-210.15599459,0.0003589,2]
[310884342,1704771044327,-309.04412086,0.0003589,2]
[310884343,1704771044337,-500.0,0.0003589,2]
[310884344,1704771044346,-271.3921664,0.0003589,2]
[310884345,1704771044357,-1867.6078336,0.0003589,2]
[310884346,1704771044367,-500.0,0.0003589,2]
[310884347,1704771044376,-500.0,0.0003589,2]
[310884348,1704771044385,-510.59717459,0.0003589,2]
[310884349,1704771044394,-500.0,0.0003589,2]
[310884350,1704771044403,-500.0,0.0003589,2]
[310884351,1704771044412,-500.0,0.0003589,2]
[310884352,1704771044420,-666.32,0.0003589,2]
[310884353,1704771044430,-500.0,0.0003589,2]
[310884354,1704771044438,-500.0,0.0003589,2]
[310884355,1704771044447,-500.0,0.0003589,2]
[310884356,1704771044456,-500.0,0.0003589,2]
[310884357,1704771044465,-1579.15,0.0003589,2]
[310884358,1704771044474,-500.0039697,0.0003589,2]
[310884359,1704771044483,-500.0,0.0003589,2]
[310884360,1704771044492,-604.64057332,0.0003589,2]
[310884361,1704771044502,-501.70341923,0.0003589,2]
[310884362,1704771044511,-1234.65,0.0003589,2]
[310884363,1704771044520,-500.0,0.0003589,2]
[310884364,1704771044530,-500.0,0.0003589,2]
[310884365,1704771044539,-622.72702956,0.0003589,2]
[310884366,1704771044551,-1168.08297044,0.0003589,2]
[310884367,1704771044560,-500.0,0.0003589,2]
[310884368,1704771044569,-500.0,0.0003589,2]
[310884369,1704771044578,-500.0,0.0003589,2]
[310884370,1704771044587,-604.00242649,0.0003589,2]
[310884371,1704771044596,-593.02653868,0.0003589,2]
[310884372,1704771044605,-500.0,0.0003589,2]
[310884373,1704771044614,-500.0,0.0003589,2]
[310884374,1704771044625,-500.0,0.0003589,2]
[310884375,1704771044635,-623.70359555,0.0003589,2]
[310884376,1704771044644,-510.0357936,0.0003589,2]
[310884377,1704771044655,-500.0,0.0003589,2]
[310884378,1704771044664,-500.96582501,0.0003589,2]
[310884379,1704771044673,-500.0,0.0003589,2]
[310884380,1704771044682,-500.0,0.0003589,2]
[310884381,1704771044691,-151.0,0.0003589,2]
[310884382,1704771044700,-151.0,0.0003589,2]
[310884383,1704771044710,-199.286319,0.0003589,2]
[310884384,1704771044719,-199.286319,0.0003589,2]
[310884385,1704771044728,-168.08,0.00035986,2]
[310884386,1704771044737,-168.08,0.00035986,2]
[310884387,1704771044746,-168.08,0.00035986,2]
[310884388,1704771044756,-168.08,0.00035986,2]
[310884389,1704771044766,-168.08,0.00035986,2]
[310884390,1704771044776,-168.08,0.00035986,2]
[310884391,1704771044786,-168.08,0.00035986,2]
[310884392,1704771044795,-168.08,0.00035986,2]
[310884393,1704771044804,-168.08,0.00035986,2]
[310884394,1704771044814,-168.08,0.00035986,2]
[310884395,1704771044823,-168.08,0.00035986,2]
[310884396,1704771044833,-168.08,0.00035986,2]
[310884397,1704771044843,-168.08,0.00035986,2]
[310884398,1704771044853,-168.08,0.00035986,2]
[310884399,1704771044863,-168.08,0.00035986,2]
[310884400,1704771044873,-168.08,0.00035986,2]
[310884401,1704771044883,-168.08,0.00035986,2]
[310884402,1704771044893,-168.08,0.00035986,2]
[310884403,1704771044903,-168.08,0.00035986,2]
[310884404,1704771044913,-171.27151114,0.00035986,2]
[310884405,1704771044922,-151.0,0.00035999,2]
[310884406,1704771044934,-151.0,0.00035999,2]
[310884407,1704771044944,-151.0,0.00035999,2]
[310884408,1704771044954,-1109.96,0.00035999,2]
[310884409,1704771044963,-1109.96,0.00035999,2]
[310884410,1704771044973,-76118.54423924,0.00036,2]
[310884411,1704771045317,-884.05342853,0.00034292,3]
[310884412,1704771045329,-397.44657147,0.00034292,3]
[310884413,1704771045338,-218.6642757,0.00035616,2]
[310884414,1704771045350,-835.5657243,0.00035616,2]
[310884415,1704771045359,-502.87066445,0.00035616,2]
[310884416,1704771045369,-1054.23,0.0003589,2]
[310884417,1704771045378,-1220.10478498,0.00036,2]
[310884439,1704771046681,-300.0,0.0002222,2]
[310884440,1704771046690,-431.22599349,0.00035615,7]
[310884441,1704771046699,-25.89114053,0.00035615,2]
[310884512,1704772232769,-200.24945932,0.0002212,2]
[310884513,1704772232778,-1003.64431639,0.00022219,2]
[310884520,1704772238846,-2352.63989372,0.00022219,2]
[310884521,1704772238984,-28.82923079,0.00022219,2]
[310884522,1704772238994,-300.0,0.0002222,2]
[310884523,1704772239004,-2087.97063865,0.0002222,2]
[310884524,1704772239013,-978.88032498,0.000259,2]
[310884525,1704772239023,-1263.19642864,0.00029857,3]
[310884526,1704772239037,-895.98700309,0.00029857,3]
[310884527,1704772239047,-150.0,0.00031939,2]
[310884528,1704772239057,-150.114,0.00031939,2]
[310884529,1704772239066,-2975.23471095,0.00031978,2]
[310884530,1704772239077,-9379.7,0.00031978,2]
[310884531,1704772239089,-1192.04979165,0.00031978,2]
[310884532,1704772239099,-191.29956,0.00032213,2]
[310884533,1704772239109,-177.645867,0.0003274,2]
[310884534,1704772239119,-340.76064121,0.0003379,2]
[310884535,1704772239131,-802.87823081,0.0003379,2]
[310884536,1704772239141,-1000.0,0.00034,7]
[310884537,1704772239150,-5000.0,0.00034244,7]
[310884538,1704772239160,-561.3930027,0.00034521,2]
[310884539,1704772239176,-541.5575323,0.00034521,2]
[310884540,1704772239186,-5731.37,0.0003485,15]
[310884541,1704772239196,-300.0,0.000349,17]
[310884542,1704772239206,-150.0,0.000349,2]
[310884543,1704772239215,-154.90705577,0.000349,2]
[310884544,1704772239225,-5000.0,0.00034911,2]
[310884545,1704772239234,-398.21561648,0.00035,4]
[310884546,1704772239244,-155.0,0.00035,2]
[310884547,1704772239254,-5000.0,0.00035,2]
[310884548,1704772239264,-6452.96007234,0.00035,4]
[310884549,1704772239273,-921.0,0.00035,2]
[310884550,1704772239283,-1000.0,0.00035,2]
[310884551,1704772239293,-332.52969855,0.00035451,4]
[310884552,1704772239304,-368.0,0.00035452,2]
[310884553,1704772239313,-1000.0,0.000355,2]
[310884554,1704772239322,-1000.0,0.000355,2]
[310884555,1704772239331,-156.29888519,0.00035515,2]
[310884556,1704772239341,-1683.36,0.00035605,3]
[310884557,1704772239349,-1402.8,0.00035605,3]
[310884558,1704772239359,-614.99756498,0.00035614,4]
[310884559,1704772239369,-5643.76353657,0.00035615,2]
[310884560,1704772239379,-272.91504089,0.00035615,4]
[310884561,1704772239388,-3468.59352094,0.00035615,4]
[310884562,1704772239398,-200.0,0.00035615,2]
[310884563,1704772239407,-2447.20731288,0.00035615,2]
[310884564,1704772239416,-409.69324898,0.00035615,2]
[310884565,1704772239427,-649.46848965,0.00035615,4]
[310884566,1704772239436,-4039.92201284,0.00035615,4]
[310884567,1704772239446,-1025.4344042,0.00035615,2]
[310884568,1704772239457,-4450.36044221,0.00035615,4]
[310884569,1704772239467,-282.50801309,0.00035615,3]
[310884570,1704772239476,-500.0,0.00035616,2]
[310884571,1704772239486,-500.0,0.00035616,2]
[310884572,1704772239495,-500.0,0.00035616,2]
[310884573,1704772239505,-500.0,0.00035616,2]
[310884574,1704772239516,-500.0,0.00035616,2]
[310884575,1704772239525,-500.0,0.00035616,2]
[310884576,1704772239535,-500.0,0.00035616,2]
[310884577,1704772239545,-501.78380216,0.00035616,2]
[310884578,1704772239555,-506.3721158,0.00035616,2]
[310884579,1704772239565,-500.0,0.00035616,2]
[310884580,1704772239575,-500.0,0.00035616,2]
[310884581,1704772239585,-612.3960019,0.00035616,2]
[310884582,1704772239594,-500.0,0.00035616,2]
[310884583,1704772239603,-500.0,0.00035616,2]
[310884584,1704772239613,-191.4763002,0.00035616,2]
[310884585,1704772239622,-502.54561137,0.00035616,2]
[310884586,1704772239631,-501.95820928,0.00035616,2]
[310884587,1704772239641,-500.0,0.00035616,2]
[310884588,1704772239650,-500.0,0.00035616,2]
[310884589,1704772239660,-500.0,0.00035616,2]
[310884590,1704772239669,-500.0,0.00035616,2]
[310884591,1704772239678,-503.40087854,0.00035616,2]
[310884592,1704772239687,-500.0,0.00035616,2]
[310884593,1704772239696,-500.0,0.00035616,2]
[310884594,1704772239705,-500.0,0.00035616,2]
[310884595,1704772239714,-500.0,0.00035616,2]
[310884596,1704772239725,-500.0,0.00035616,2]
[310884597,1704772239734,-500.0,0.00035616,2]
[310884598,1704772239744,-500.0,0.00035616,2]
[310884599,1704772239756,-500.0,0.00035616,2]
[310884600,1704772239765,-150.90504955,0.00035616,2]
[310884601,1704772239774,-500.0,0.00035616,2]
[310884602,1704772239783,-500.0,0.00035616,2]
[310884603,1704772239793,-500.0,0.00035616,2]
[310884604,1704772239801,-548.79,0.00035616,2]
[310884605,1704772239810,-504.3072652,0.00035616,2]
[310884606,1704772239819,-500.0,0.00035616,2]
[310884607,1704772239829,-1252.35,0.00035616,2]
[310884608,1704772239838,-500.0,0.00035616,2]
[310884609,1704772239847,-500.0,0.00035616,2]
[310884610,1704772239857,-500.0,0.00035616,2]
[310884611,1704772239866,-500.0,0.00035616,2]
[310884612,1704772239875,-500.0,0.00035616,2]
[310884613,1704772239885,-500.0,0.00035616,2]
[310884614,1704772239894,-506.19969527,0.00035616,2]
[310884615,1704772239904,-500.0,0.00035616,2]
[310884616,1704772239914,-504.20187215,0.00035616,2]
[310884617,1704772239923,-7.11047877,0.00035616,2]
[310884640,1704772246873,-282.82346354,0.00035606,3]
[310884840,1704773433294,-978.88032498,0.00029881,2]
[310884841,1704773433303,-188.06059474,0.00029882,3]
[310884847,1704773438182,-5159.14079447,0.00029882,3]
[310884849,1704773438192,-242.0076623,0.00029882,3]
[310884851,1704773438201,-493.46175569,0.00029896,3]
[310884852,1704773438210,-842.69435708,0.00029909,3]
[310884853,1704773438220,-24900.0,0.00033189,2]
[310884854,1704773438229,-979.52492907,0.00033516,2]
[310884856,1704773438238,-217.386201,0.00033543,2]
[310884858,1704773438247,-1000.0,0.00034,7]
[310884860,1704773438257,-175.113313,0.00034126,2]
[310884861,1704773438267,-882.360428,0.00034521,2]
[310884862,1704773438276,-155.0,0.00034616,2]
[310884863,1704773438285,-300.0,0.000349,17]
[310884864,1704773438294,-5000.0,0.00034911,2]
[310884865,1704773438303,-1656.16988376,0.00035,45]
[310884866,1704773438312,-388.71284166,0.00035,4]
[310884867,1704773438321,-502.270562,0.00035,7]
[310884868,1704773438331,-332.52969855,0.00035,4]
[310884869,1704773438340,-154.8915759,0.00035,4]
[310884870,1704773438350,-7803.1787706,0.00035,4]
[310884871,1704773438359,-13128.44161681,0.00035,2]
[310884873,1704773438368,-1457.03369471,0.00035248,14]
[310884875,1704773438378,-301.0,0.00035249,2]
[310884877,1704773438387,-6452.96007234,0.00035299,4]
[310884879,1704773438396,-4214.39982739,0.000353,7]
[310884880,1704773438405,-405.0,0.00035452,2]
[310884882,1704773438415,-523.04448749,0.00035516,2]
[310884883,1704773438424,-3594.34,0.0003558,3]
[310884885,1704773438434,-4313.21,0.0003559,3]
[310884887,1704773438443,-1515.72,0.000356,7]
[310884888,1704773438452,-200.0,0.00035606,2]
[310884889,1704773438462,-1025.4344042,0.00035606,2]
[310884890,1704773438472,-409.69324898,0.00035606,2]
[310884891,1704773438482,-2447.20731288,0.00035606,2]
[310884892,1704773438491,-649.46848965,0.00035606,4]
[310884893,1704773438501,-1584.48372223,0.00035614,4]
[310884894,1704773438510,-299.90013568,0.00035614,2]
[310884895,1704773438520,-2087.18754418,0.00035614,4]
[310884896,1704773438529,-457.54653795,0.00035614,2]
[310884897,1704773438539,-313.39850654,0.00035614,4]
[310884898,1704773438549,-155.69053498,0.00035614,2]
[310884899,1704773438558,-155.4628525,0.00035614,4]
[310884900,1704773438567,-283.37380432,0.00035614,4]
[310884901,1704773438575,-1618.62626674,0.00035614,4]
[310884902,1704773438585,-208.00198312,0.00035614,2]
[310884903,1704773438594,-3541.79156626,0.00035614,2]
[310884904,1704773438604,-154.8915759,0.00035614,4]
[310884905,1704773438614,-6566.10664233,0.00035615,4]
[310884906,1704773438623,-214.05651292,0.00035615,4]
[310884907,1704773438632,-248.69840265,0.00035615,4]
[310884908,1704773438641,-151.0,0.00035616,2]
[310884909,1704773438650,-151.0,0.00035616,2]
[310884910,1704773438659,-179.357687,0.00035616,2]
[310884911,1704773438668,-179.357687,0.00035616,2]
[310884912,1704773438677,-282.98854922,0.00035616,3]
[310884913,1704773438685,-1987.79693102,0.00035616,4]
[310884914,1704773438694,-1806.39501228,0.00035616,4]
[310884915,1704773438703,-500.0,0.00035616,2]
[310884916,1704773438712,-500.0,0.00035616,2]
[310884917,1704773438721,-500.0,0.00035616,2]
[310884918,1704773438730,-500.0,0.00035616,2]
[310884919,1704773438739,-210.69454058,0.00035616,2]
[310884920,1704773438748,-500.0,0.00035616,2]
[310884921,1704773438757,-502.59317857,0.00035616,2]
[310884922,1704773438766,-500.0,0.00035616,2]
[310884923,1704773438775,-215.0521032,0.00035616,2]
[310884924,1704773438784,-314.76144495,0.00035616,2]
[310884925,1704773438793,-570.54039986,0.00035616,2]
[310884926,1704773438802,-517.48025698,0.00035616,2]